bitfinex/quotes_ETHUSD_20251024
["timestamp","ask_amount","ask_price","bid_price","bid_amount"]
[1761339078882,5.73942704,3941.0,3940.9,0.4299]
[1761339079651,12.20612949,3941.0,3940.9,0.002]
[1761339079980,12.20612949,3941.0,3940.9,0.4299]
[1761339080588,13.76132949,3941.0,3940.9,0.002]
[1761339080794,13.76132949,3941.0,3940.9,0.4299]
[1761339083760,13.76132949,3941.0,3940.9,0.002]
[1761339086464,10.55932949,3941.0,3940.9,0.4299]
[1761339086656,13.76032949,3941.0,3940.9,0.4299]
[1761339087060,13.76032949,3941.0,3940.9,0.002]
[1761339087255,13.88752949,3941.0,3940.9,0.002]
[1761339087865,13.88952949,3941.0,3940.9,0.002]
[1761339088496,13.98972949,3941.0,3940.9,0.002]
[1761339090963,13.88952949,3941.0,3940.9,0.002]
[1761339092692,14.7969155,3941.0,3940.9,0.002]
[1761339093567,14.8971155,3941.0,3940.9,0.002]
[1761339104485,14.7969155,3941.0,3940.9,0.002]
[1761339106730,11.5939155,3941.0,3940.9,0.002]
[1761339106935,14.7939155,3941.0,3940.9,0.4341]
[1761339108707,11.0870355,3941.0,3940.9,0.4341]
[1761339108905,5.73742704,3941.0,3940.9,0.4341]
[1761339109149,13.23100897,3941.0,3940.9,0.4341]
[1761339111134,10.03100897,3941.0,3940.9,0.4341]
[1761339111341,13.23100897,3941.0,3940.9,0.4341]
[1761339115561,7.29262704,3941.0,3940.9,0.4341]
[1761339116340,9.32575217,3941.0,3940.9,0.4341]
[1761339116722,9.32575217,3941.0,3940.9,0.002]
[1761339116915,9.42595217,3941.0,3940.9,0.002]
[1761339117111,9.32575217,3941.0,3940.9,0.002]
[1761339117461,9.42595217,3941.0,3940.9,0.002]
[1761339118219,6.12575217,3941.0,3940.9,0.002]
[1761339118449,14.7562541,3941.0,3940.9,0.002]
[1761339119053,14.3765741,3941.0,3940.9,0.002]
[1761339119952,14.8834541,3941.0,3940.9,0.002]
[1761339120151,14.9836541,3941.0,3940.9,0.002]
[1761339120950,14.8834541,3941.0,3940.9,0.002]
[1761339121151,11.6844541,3941.0,3940.9,0.002]
[1761339121451,14.8854541,3941.0,3940.9,0.002]
[1761339121758,14.9856541,3941.0,3940.9,0.002]
[1761339122932,14.8854541,3941.0,3940.9,0.002]
[1761339123624,14.9856541,3941.0,3940.9,0.002]
[1761339124754,14.8854541,3941.0,3940.9,0.002]
[1761339127037,14.8844541,3941.0,3940.9,0.002]
[1761339127759,11.6844541,3941.0,3940.9,0.002]
[1761339127969,14.8844541,3941.0,3940.9,0.002]
[1761339138545,14.7572541,3941.0,3940.9,0.002]
[1761339138752,11.5572541,3941.0,3940.9,0.002]
[1761339138953,14.7572541,3941.0,3940.9,0.4759]
[1761339139561,14.7572541,3941.0,3940.9,0.002]
[1761339146680,14.7572541,3941.0,3940.9,0.4759]
[1761339147502,14.7572541,3941.0,3940.9,0.002]
[1761339147900,14.8574541,3941.0,3940.9,0.002]
[1761339148495,11.5572541,3941.0,3940.9,0.002]
[1761339148676,14.8844541,3941.0,3940.9,0.002]
[1761339150882,14.9846541,3941.0,3940.9,0.002]
[1761339154706,18.60768581,3941.0,3940.9,0.002]
[1761339155279,18.50748581,3941.0,3940.9,0.002]
[1761339156926,18.00060581,3941.0,3940.9,0.002]
[1761339160337,18.50748581,3941.0,3940.9,0.002]
[1761339160542,18.00060581,3941.0,3940.9,0.002]
[1761339161441,18.00060581,3941.0,3940.2,1.579]
[1761339161442,3.04475782,3940.3,3940.2,1.579]
[1761339161739,12.32622464,3940.3,3940.2,1.579]
[1761339162244,12.32622464,3940.3,3940.2,2.0122]
[1761339171535,12.45342464,3940.3,3940.2,2.0122]
[1761339176479,13.95254723,3940.3,3940.2,2.0122]
[1761339176774,13.95254723,3940.3,3940.2,1.579]
[1761339177365,13.95254723,3940.3,3940.2,2.0122]
[1761339178993,13.95254723,3940.3,3940.2,1.579]
[1761339180402,4.60021548,3939.9,3939.8,0.002]
[1761339180569,12.3264823,3939.9,3939.8,0.002]
[1761339180764,12.6739823,3939.9,3939.8,0.002]
[1761339181095,17.20124912,3939.9,3939.8,0.002]
[1761339181290,17.40774912,3939.9,3939.8,0.002]
[1761339181492,19.8210224,3939.9,3939.8,0.002]
[1761339184092,11.66795558,3939.9,3939.8,0.002]
[1761339184298,9.2546823,3939.9,3939.8,0.4751]
[1761339184495,12.4536823,3939.9,3939.8,0.4751]
[1761339184990,9.2546823,3939.9,3939.8,0.4751]
[1761339185199,11.9468023,3939.9,3939.8,0.4751]
[1761339186861,0.1272,3939.9,3939.8,0.4751]
[1761339187098,3.3262,3939.9,3939.8,0.4751]
[1761339187494,5.86433548,3939.9,3939.8,0.4751]
[1761339188706,5.86433548,3939.9,3939.8,0.4471]
[1761339188707,10.7712823,3939.9,3939.8,0.4471]
[1761339190078,7.5722823,3939.9,3939.8,0.4471]
[1761339190279,10.7712823,3939.9,3939.8,0.4471]
[1761339191197,7.0654023,3939.9,3939.8,0.4471]
[1761339191398,3.199,3939.9,3939.8,0.4471]
[1761339193601,1.5552,3940.1,3939.8,0.4471]
[1761339193904,3.199,3939.9,3939.8,0.4471]
[1761339199105,3.199,3939.9,3939.8,0.83461353]
[1761339199303,3.199,3939.9,3939.8,0.4471]
[1761339199500,3.199,3939.9,3939.8,1.20958667]
[1761339203007,1.5552,3940.0,3939.8,0.4471]
[1761339203328,3.199,3939.9,3939.8,0.002]
[1761339203705,3.199,3939.9,3939.8,0.4471]
[1761339204707,3.699,3939.9,3939.8,0.4471]
[1761339209005,6.23713548,3939.9,3939.8,0.002]
[1761339210621,6.23713548,3939.9,3939.8,0.4471]
[1761339215251,6.23713548,3939.9,3939.8,0.002]
[1761339216820,8.86537942,3939.9,3939.8,0.002]
[1761339217023,8.99257942,3939.9,3939.8,0.002]
[1761339217217,8.89357942,3939.9,3939.8,0.002]
[1761339219556,8.89257942,3939.9,3939.8,0.002]
[1761339220646,7.79133548,3939.9,3939.8,0.002]
[1761339222959,8.29821548,3939.9,3939.8,0.002]
[1761339223182,8.42541548,3939.9,3939.8,0.002]
[1761339223528,8.42541548,3939.9,3939.8,0.444]
[1761339223729,7.91853548,3939.9,3939.8,0.002]
[1761339226870,7.91853548,3939.9,3939.8,0.444]
[1761339227981,0.5,3939.9,3939.8,0.444]
[1761339228275,3.698,3939.9,3939.8,0.444]
[1761339228679,6.23613548,3939.9,3939.8,0.444]
[1761339229386,3.56889001,3939.9,3939.8,0.444]
[1761339230077,3.198,3939.9,3939.8,0.444]
[1761339233682,4.09429465,3940.0,3939.8,0.444]
[1761339233683,0.001,3940.0,3939.8,0.444]
[1761339233876,3.198,3939.9,3939.8,0.444]
[1761339234077,3.198,3939.9,3939.8,0.86943165]
[1761339239393,3.198,3939.9,3939.8,0.5712]
[1761339242607,0.001,3940.0,3939.8,0.5712]
[1761339242775,3.198,3939.9,3939.8,0.1292]
[1761339243174,0.001,3940.0,3939.8,0.1292]
[1761339243388,3.198,3939.9,3939.8,0.1292]
[1761339244101,3.198,3939.9,3939.8,3.71653192]
[1761339244310,0.001,3940.0,3939.8,1.17833202]
[1761339244466,0.001,3940.0,3939.9,2.99043548]
[1761339244670,1.5562,3940.0,3939.9,2.99043548]
[1761339245086,1.5562,3940.0,3939.9,0.4523]
[1761339245272,1.5562,3940.0,3939.9,1.80074606]
[1761339246615,1.5562,3940.0,3939.9,1.03828846]
[1761339248172,1.5562,3940.0,3939.9,0.4523]
[1761339250819,2.7542,3940.1,3939.9,0.4523]
[1761339251124,2.7542,3940.1,3940.0,0.1272]
[1761339251427,2.7542,3940.1,3940.0,0.5637]
[1761339252217,3.197,3940.2,3940.0,0.5637]
[1761339252416,3.197,3940.2,3940.1,0.4365]
[1761339253258,3.197,3940.2,3940.1,0.6543]
[1761339253583,3.197,3940.2,3940.0,0.691407]
[1761339253778,3.197,3940.2,3940.0,0.1272]
[1761339254511,3.197,3940.2,3940.1,0.4365]
[1761339254678,3.198,3940.2,3940.1,0.4365]
[1761339255078,3.198,3940.2,3940.1,0.6543]
[1761339257327,3.198,3940.2,3940.0,0.1272]
[1761339259000,0.5,3940.1,3940.0,0.1272]
[1761339259224,0.5,3940.1,3940.0,0.5637]
[1761339259406,0.5,3940.1,3940.0,3.4883959]
[1761339259607,3.697,3940.1,3940.0,3.4883959]
[1761339260814,3.697,3940.1,3940.0,0.95032484]
[1761339261635,3.697,3940.1,3940.0,3.4883959]
[1761339262136,3.697,3940.1,3940.0,0.95032484]
[1761339262339,0.5,3940.1,3940.0,0.95032484]
[1761339262540,3.197,3940.1,3940.0,3.4883959]
[1761339263718,0.001,3940.2,3940.0,0.95032484]
[1761339264030,0.001,3940.2,3940.1,3.19230664]
[1761339264229,3.198,3940.2,3940.1,3.81692814]
[1761339265406,3.198,3940.2,3940.0,0.1272]
[1761339266532,0.5,3940.1,3940.0,0.1272]
[1761339270312,0.5,3940.1,3940.0,3.10177106]
[1761339270649,3.697,3940.1,3940.0,3.10177106]
[1761339271020,0.5,3940.1,3940.0,3.10177106]
[1761339271215,0.5,3940.1,3940.0,3.66596784]
[1761339271627,0.5,3940.1,3940.0,3.66796784]
[1761339271922,0.501,3940.1,3940.0,0.69339678]
[1761339272124,0.501,3940.1,3940.0,0.1292]
[1761339273255,0.501,3940.1,3940.0,2.66727106]
[1761339275852,0.501,3940.1,3940.0,3.10377106]
[1761339276043,0.501,3940.1,3940.0,2.66727106]
[1761339276239,0.501,3940.1,3940.0,3.3000512]
[1761339278152,0.501,3940.1,3940.0,3.7668512]
[1761339278945,0.501,3940.1,3940.0,3.3000512]
[1761339280226,0.501,3940.1,3940.0,2.66727106]
[1761339282034,0.501,3940.1,3940.0,0.1292]
[1761339282359,0.501,3940.1,3940.0,2.66727106]
[1761339284261,0.501,3940.1,3940.0,3.13407106]
[1761339284444,0.501,3940.1,3940.0,2.66727106]
[1761339284641,3.697,3940.1,3940.0,3.30308113]
[1761339285327,3.697,3940.1,3940.0,3.76988113]
[1761339287277,3.697,3940.1,3940.0,3.30308113]
[1761339287447,3.697,3940.1,3940.0,2.66727106]
[1761339288064,3.697,3940.1,3940.0,0.1292]
[1761339288345,3.697,3940.1,3940.0,2.66727106]
[1761339288749,3.697,3940.1,3940.0,0.1292]
[1761339288977,3.697,3940.1,3940.0,2.66727106]
[1761339289560,3.697,3940.1,3940.0,0.1292]
[1761339289764,3.697,3940.1,3940.0,2.66727106]
[1761339294688,3.697,3940.1,3940.0,3.30307908]
[1761339295257,3.697,3940.1,3940.0,3.76987908]
[1761339296989,3.697,3940.1,3940.0,3.30307908]
[1761339297287,3.697,3940.1,3940.0,3.76377908]
[1761339297869,3.697,3940.1,3940.0,3.30307908]
[1761339300275,3.697,3940.1,3940.0,3.76377908]
[1761339301772,3.697,3940.1,3940.0,0.76500802]
[1761339302105,3.697,3940.1,3940.0,0.1292]
[1761339302266,3.697,3940.1,3940.0,2.66727106]
[1761339303707,3.697,3940.1,3940.0,0.1292]
[1761339303876,8.2226674,3940.1,3940.0,0.002]
[1761339304397,8.3216674,3940.1,3940.0,0.002]
[1761339305106,0.501,3940.1,3940.0,2.54007106]
[1761339305286,3.697,3940.1,3940.0,2.92145146]
[1761339305995,3.697,3940.1,3940.0,3.50935146]
[1761339307506,0.001,3940.1,3940.0,3.48785146]
[1761339308010,0.001,3940.1,3940.0,4.17168436]
[1761339311113,0.001,3940.1,3940.0,1.1944133]
[1761339311293,0.001,3940.1,3940.0,0.5105804]
[1761339311694,0.001,3940.1,3940.0,3.04865146]
[1761339312991,0.001,3940.1,3940.0,3.48785146]
[1761339313343,0.001,3940.1,3940.0,4.17168436]
[1761339316420,0.001,3940.1,3940.0,3.48785146]
[1761339317902,0.001,3940.1,3940.0,4.17168436]
[1761339318102,0.001,3940.1,3940.0,3.51323217]
[1761339318638,0.001,3940.1,3940.0,3.48785146]
[1761339327067,0.001,3940.1,3940.0,8.01351886]
[1761339327364,0.001,3940.1,3940.0,11.03127463]
[1761339328162,0.001,3940.1,3940.0,9.67035326]
[1761339329366,0.001,3940.1,3940.0,11.03419678]
[1761339329742,0.001,3940.1,3940.0,9.67035326]
[1761339330367,0.001,3940.1,3940.0,11.03460907]
[1761339333571,0.001,3940.1,3940.0,9.67035326]
[1761339334980,0.001,3940.1,3940.0,10.57088774]
[1761339340005,1e-08,3940.3,3940.2,4.31444223]
[1761339340174,1e-08,3940.3,3940.2,8.46246173]
[1761339340505,1e-08,3940.3,3940.2,8.88618231]
[1761339340705,1e-08,3940.3,3940.2,8.98779709]
[1761339344507,1e-08,3940.3,3940.2,12.82779709]
[1761339356325,1e-08,3940.3,3940.2,14.64349864]
[1761339361439,1e-08,3940.3,3940.2,12.82779709]
[1761339362257,1e-08,3940.3,3940.2,13.33467709]
[1761339373264,0.001,3940.4,3940.3,4.59995782]
[1761339373443,0.001,3940.4,3940.3,5.42253822]
[1761339373961,0.001,3940.4,3940.3,5.52414474]
[1761339374162,0.001,3940.4,3940.3,9.36414474]
[1761339374731,0.001,3941.1,3940.3,9.36414474]
[1761339374732,0.001,3941.1,3941.0,4.09262704]
[1761339374935,0.001,3941.1,3941.0,14.06817162]
[1761339375163,0.001,3941.9,3941.8,4.09211207]
[1761339375327,0.001,3941.9,3941.8,12.73568307]
[1761339375532,0.001,3941.9,3941.8,12.71031395]
[1761339376233,0.001,3941.9,3941.8,13.15151395]
[1761339376434,0.001,3942.5,3942.0,3.04366335]
[1761339376749,0.001,3942.5,3942.0,4.59886335]
[1761339376953,0.001,3942.5,3942.0,5.04006335]
[1761339377157,0.001,3942.5,3942.0,5.14161776]
[1761339377368,0.001,3942.5,3942.4,10.02480785]
[1761339377678,0.1195,3943.8,3943.7,2.53568983]
[1761339377840,0.1914,3944.0,3943.9,2.53556124]
[1761339378044,0.1914,3944.0,3943.9,7.96176312]
[1761339378676,0.6,3944.1,3944.0,2.53549695]
[1761339378877,0.6,3944.1,3944.0,5.72749695]
[1761339379174,0.6,3944.1,3944.0,4.28074436]
[1761339379472,0.6,3944.1,3944.0,3.6012627]
[1761339379878,0.7212,3944.1,3944.0,3.6012627]
[1761339380077,0.6,3944.1,3944.0,3.6012627]
[1761339382774,0.7212,3944.1,3944.0,3.6012627]
[1761339384069,0.7212,3944.1,3944.0,3.192]
[1761339384278,0.7212,3944.1,3944.0,3.191]
[1761339384779,0.7212,3944.1,3944.0,3.3174]
[1761339385785,0.6,3944.1,3944.0,3.191]
[1761339386086,0.6,3944.1,3944.0,3.3174]
[1761339386385,0.6,3944.1,3944.0,3.64914]
[1761339386586,0.7202,3944.1,3944.0,3.64914]
[1761339387686,0.6,3944.1,3944.0,3.64914]
[1761339388190,0.7202,3944.1,3944.0,3.64914]
[1761339389059,0.7212,3944.1,3944.0,3.64914]
[1761339390559,0.601,3944.1,3944.0,3.64914]
[1761339390765,0.7212,3944.1,3944.0,3.3174]
[1761339393975,6.14740188,3944.1,3944.0,3.22425142]
[1761339394895,6.02720188,3944.1,3944.0,3.13110284]
[1761339395098,6.83199207,3944.1,3944.0,1.89269531]
[1761339395288,6.14740188,3944.1,3944.0,1.89269531]
[1761339395891,6.02720188,3944.1,3944.0,0.1264]
[1761339396064,6.14740188,3944.1,3943.7,3.19]
[1761339396261,0.1202,3944.0,3943.7,3.19]
[1761339396677,4.01567835,3943.8,3943.7,3.19]
[1761339396860,8.0313567,3943.8,3943.7,3.19]
[1761339397065,8.1522567,3943.8,3943.7,3.19]
[1761339397296,4.01567835,3943.8,3943.7,3.19]
[1761339397467,4.01567835,3943.8,3943.7,3.70334817]
[1761339397965,4.11467835,3943.8,3943.7,3.3164]
[1761339398173,4.01567835,3943.8,3943.7,3.3164]
[1761339398367,4.01567835,3943.8,3943.7,3.99588166]
[1761339399314,4.01567835,3943.8,3943.7,3.3164]
[1761339399672,4.01567835,3943.8,3943.7,3.99365532]
[1761339399883,4.01567835,3943.8,3943.7,4.78113489]
[1761339400407,4.01567835,3943.8,3943.7,4.10387957]
[1761339401323,4.01567835,3943.8,3943.7,5.01131062]
[1761339402322,4.01567835,3943.8,3943.7,4.10387957]
[1761339403216,4.01567835,3943.8,3943.7,5.46502614]
[1761339403722,4.01567835,3943.8,3943.7,4.10387957]
[1761339404687,4.32467835,3943.8,3943.7,4.10387957]
[1761339404910,4.32467835,3943.8,3943.7,3.3164]
[1761339405112,4.01567835,3943.8,3943.7,3.3164]
[1761339405815,4.11467835,3943.8,3943.7,3.3164]
[1761339407089,8.0313567,3943.8,3943.7,1.36441642]
[1761339407301,8.0313567,3943.8,3942.9,0.002]
[1761339407302,1.5552,3943.7,3942.9,0.002]
[1761339407506,4.01567835,3943.0,3942.9,0.002]
[1761339407913,4.11577835,3943.0,3942.9,0.002]
[1761339417068,4.11577835,3943.0,3942.9,0.1292]
[1761339420142,4.01567835,3943.0,3942.9,0.1292]
[1761339420470,4.11577835,3943.0,3942.9,0.1292]
[1761339422575,4.11577835,3943.0,3942.9,0.80969626]
[1761339423083,0.1001,3943.0,3942.9,0.80969626]
[1761339423283,4.01567835,3943.2,3942.9,0.1292]
[1761339423489,4.01567835,3943.2,3943.1,0.80760692]
[1761339424078,4.11577835,3943.2,3943.1,0.80760692]
[1761339426576,4.11577835,3943.2,3943.1,0.1272]
[1761339426889,8.1314567,3943.2,3943.1,0.1272]
[1761339427087,8.56021852,3943.2,3943.1,0.1272]
[1761339427471,4.54454017,3943.2,3943.1,0.1272]
[1761339428491,4.11577835,3943.2,3943.1,0.1272]
[1761339429262,8.1314567,3943.2,3943.1,0.1272]
[1761339429795,9.6866567,3943.2,3943.1,0.1272]
[1761339429993,10.36706362,3943.2,3943.1,0.1272]
[1761339431317,1.5552,3943.1,3942.9,0.002]
[1761339431619,4.7452,3943.0,3942.9,0.002]
[1761339431904,1.7696,3942.9,3942.5,0.1292]
[1761339432196,5.57087835,3942.6,3942.5,0.1292]
[1761339432399,9.60315842,3942.6,3942.5,0.1292]
[1761339432597,13.72013677,3942.6,3942.5,0.002]
[1761339432799,1.5552,3942.5,3942.3,0.1272]
[1761339433098,1.6565,3942.5,3942.3,0.1272]
[1761339433303,0.1013,3942.4,3942.2,0.1272]
[1761339433474,8.76087835,3942.3,3942.2,0.1272]
[1761339433678,8.86217835,3942.3,3942.2,0.1272]
[1761339435409,1.5552,3942.3,3942.2,0.1272]
[1761339435565,8.76187835,3942.3,3942.2,0.1272]
[1761339435763,8.86317835,3942.3,3942.2,0.1272]
[1761339437078,8.86317835,3942.3,3940.9,0.2304]
[1761339437079,8.86317835,3942.3,3941.6,0.68040692]
[1761339437080,9.81753688,3942.3,3941.6,0.68040692]
[1761339437421,0.1013,3942.2,3942.0,0.1272]
[1761339439414,0.78170692,3942.2,3942.0,0.1272]
[1761339440295,0.78170692,3942.2,3940.9,0.2304]
[1761339440296,6.85946527,3942.2,3941.4,0.68040692]
[1761339440504,8.7423626,3942.2,3941.6,0.1272]
[1761339440706,4.72668425,3942.2,3941.6,0.1272]
[1761339441304,4.72668425,3942.2,3941.7,0.002]
[1761339442609,7.91768425,3942.2,3941.7,0.002]
[1761339443009,4.72668425,3942.2,3941.7,0.002]
[1761339443330,7.91768425,3942.2,3941.7,0.002]
[1761339444230,4.21980425,3942.2,3941.7,0.002]
[1761339444431,5.52790692,3942.2,3941.9,0.1272]
[1761339446138,5.42660692,3942.2,3941.9,0.1272]
[1761339446727,5.52790692,3942.2,3941.9,0.1272]
[1761339447531,2.33690692,3942.2,3941.9,0.1272]
[1761339447713,5.52790692,3942.2,3941.9,0.1272]
[1761339448713,5.42660692,3942.2,3941.9,0.1272]
[1761339449251,5.94406022,3942.2,3941.9,0.1272]
[1761339449449,6.07126022,3942.2,3941.7,0.1292]
[1761339450849,8.60791487,3942.2,3941.7,0.1292]
[1761339451514,6.07126022,3942.2,3941.7,0.1292]
[1761339452339,8.60791487,3942.2,3941.7,0.1292]
[1761339458827,13.93848224,3942.2,3941.7,0.1292]
[1761339459160,13.93848224,3942.2,3941.7,0.002]
[1761339459161,3.04379207,3941.8,3941.7,0.002]
[1761339459361,11.18667944,3941.8,3941.7,0.002]
[1761339459663,11.47367944,3941.8,3941.7,0.002]
[1761339460072,11.60087944,3941.8,3941.7,0.002]
[1761339461572,2.53749143,3940.9,3940.8,0.68040692]
[1761339461771,1.5552,3940.8,3940.6,0.1272]
[1761339461956,1.5552,3940.6,3940.5,0.1272]
[1761339462144,1.5552,3940.6,3940.4,0.1272]
[1761339462145,4.7472,3940.6,3940.4,0.1272]
[1761339462352,0.1015,3940.5,3940.4,0.1272]
[1761339464688,4.7472,3940.6,3940.4,0.1272]
[1761339464892,4.7472,3940.6,3940.4,0.6014]
[1761339465252,0.68040692,3940.7,3940.5,0.4742]
[1761339465457,0.68040692,3940.7,3940.5,0.6014]
[1761339465458,3.87240692,3940.7,3940.5,0.6014]
[1761339465659,1.5552,3940.6,3940.5,0.6014]
[1761339465965,1.5552,3940.6,3940.5,0.1272]
[1761339466362,1.5552,3940.6,3940.5,0.6014]
[1761339467785,0.76225999,3940.8,3940.5,0.4742]
[1761339467960,3.192,3940.6,3940.1,0.90660692]
[1761339468165,3.192,3940.6,3940.2,0.18164365]
[1761339468353,1.5552,3940.9,3940.5,0.1272]
[1761339468553,1.5552,3940.7,3940.5,0.1272]
[1761339468753,1.5552,3940.7,3940.6,0.4742]
[1761339468949,1.5552,3940.7,3940.6,0.6014]
[1761339469164,3.192,3940.8,3940.6,0.6014]
[1761339469489,3.192,3940.9,3940.7,0.4742]
[1761339469856,3.192,3940.9,3940.8,0.1272]
[1761339470375,3.192,3940.9,3940.8,0.6014]
[1761339471358,3.192,3940.9,3940.8,0.1272]
[1761339471555,3.192,3940.9,3940.8,0.6014]
[1761339472071,3.192,3940.9,3940.8,0.1272]
[1761339474885,3.192,3940.9,3940.8,0.1292]
[1761339478918,3.95423869,3940.9,3940.8,0.1292]
[1761339479304,4.05503869,3940.9,3940.8,0.1292]
[1761339479487,4.8421113,3940.9,3940.8,0.1292]
[1761339480428,4.9429113,3940.9,3940.8,0.1292]
[1761339480986,4.05503869,3940.9,3940.8,0.1292]
[1761339481289,3.95423869,3940.9,3940.8,0.1292]
[1761339484197,0.76223869,3940.9,3940.8,0.5893]
[1761339484401,3.192,3940.9,3940.8,0.5893]
[1761339487436,3.192,3940.9,3940.8,1.26970692]
[1761339487811,1.5562,3941.3,3940.8,1.26970692]
[1761339488015,1.5552,3941.1,3940.9,0.4591]
[1761339488245,1.5552,3941.1,3941.0,0.1272]
[1761339488548,3.192,3941.1,3941.0,0.1272]
[1761339488848,3.192,3941.1,3941.0,0.5863]
[1761339490249,3.192,3941.1,3941.0,0.1272]
[1761339492116,3.192,3941.1,3941.0,0.5863]
[1761339493861,3.192,3941.1,3941.0,0.1272]
[1761339494222,1.5562,3941.3,3941.0,0.1272]
[1761339494447,1.5552,3941.1,3941.0,0.1272]
[1761339495151,1.656,3941.1,3941.0,0.1272]
[1761339495352,3.2928,3941.1,3941.0,0.1272]
[1761339495561,3.192,3941.1,3941.0,0.1272]
[1761339497343,3.192,3941.1,3940.9,0.1272]
[1761339498451,6.37888737,3941.0,3940.9,0.1272]
[1761339498623,6.47968737,3941.0,3940.9,0.1272]
[1761339499015,6.37888737,3941.0,3940.9,0.1272]
[1761339500549,6.37888737,3941.0,3940.8,0.68240692]
[1761339500550,6.47968737,3941.0,3940.8,0.68240692]
[1761339500733,7.65982933,3941.0,3940.8,0.002]
[1761339500929,7.55902933,3941.0,3940.8,0.002]
[1761339502451,7.55902933,3941.0,3940.8,0.002]
[1761339503423,3.192,3940.9,3940.8,0.002]
[1761339503623,3.192,3940.9,3940.8,0.68240692]
[1761339503824,3.192,3940.9,3940.8,0.80960692]
[1761339506856,1.5552,3941.0,3940.8,0.5883]
[1761339507168,3.192,3940.9,3940.8,0.81284419]
[1761339507763,3.192,3940.9,3940.8,1.27194419]
[1761339509465,3.192,3940.9,3940.8,1.2716478]
[1761339511042,3.192,3940.9,3940.8,0.5883]
[1761339512228,1.5552,3941.0,3940.8,0.5883]
[1761339512587,1.5552,3941.0,3940.9,1.36692953]
[1761339512750,1.5552,3941.0,3940.9,0.4591]
[1761339512951,1.5552,3941.0,3940.9,1.36692953]
[1761339516249,1.5552,3941.0,3940.9,0.4591]
[1761339517366,3.192,3941.0,3940.9,0.87203536]
[1761339518356,3.192,3941.0,3940.9,1.78240941]
[1761339519192,0.001,3941.3,3940.9,1.78240941]
[1761339519395,1.5552,3941.1,3940.9,1.03757405]
[1761339519686,1.5552,3940.7,3940.4,0.002]
[1761339519853,1.5552,3940.5,3940.4,0.002]
[1761339520853,3.197,3940.5,3940.4,0.002]
[1761339523102,4.7522,3940.5,3940.4,0.002]
[1761339523299,4.7522,3940.5,3940.4,0.4533]
[1761339527914,4.0198104,3941.1,3940.4,0.4533]
[1761339528215,4.0208104,3941.3,3940.4,0.4533]
[1761339528375,3.197,3941.2,3940.5,0.1597874]
[1761339528791,3.197,3941.2,3940.6,0.4513]
[1761339529704,3.197,3941.2,3941.1,0.1272]
[1761339530728,4.0198104,3941.2,3940.4,0.002]
[1761339530998,4.0198104,3941.2,3940.4,0.4533]
[1761339530999,11.3083196,3941.2,3940.4,0.4533]
[1761339531799,4.0198104,3940.9,3940.4,0.4533]
[1761339531981,3.199,3940.8,3940.4,0.4533]
[1761339532391,3.199,3940.8,3940.4,0.002]
[1761339532710,3.298,3940.8,3940.4,0.002]
[1761339533784,3.199,3940.6,3940.5,0.4513]
[1761339534620,3.199,3940.6,3940.4,0.002]
[1761339534830,4.84069144,3940.5,3940.4,0.002]
[1761339534977,6.65655941,3940.5,3940.4,0.002]
[1761339543936,4.0198104,3940.5,3940.4,0.002]
[1761339544943,7.2188104,3940.5,3940.4,0.002]
[1761339548858,9.85555941,3940.5,3940.4,0.002]
[1761339549062,11.50957877,3940.5,3940.4,0.002]
[1761339555138,7.2188104,3940.5,3940.4,0.002]
[1761339560465,9.75655941,3940.5,3940.4,0.002]
[1761339560669,7.2178104,3940.5,3940.4,0.002]
[1761339564371,0.001,3940.8,3940.4,0.5798]
[1761339564681,3.198,3940.7,3940.4,0.5798]
[1761339564849,3.198,3940.7,3940.5,0.6212174]
[1761339565048,3.198,3940.7,3940.6,0.1272]
[1761339565248,7.2178104,3940.7,3940.6,0.1272]
[1761339565475,7.2178104,3940.7,3940.4,0.002]
[1761339565476,7.3168104,3940.7,3940.4,0.1292]
[1761339566453,0.099,3940.6,3940.4,0.1292]
[1761339566665,7.2178104,3940.7,3940.4,0.1292]
[1761339567191,7.3168104,3940.7,3940.4,0.1292]
[1761339567951,7.2178104,3940.7,3940.4,0.1292]
[1761339568350,7.2178104,3940.7,3940.4,0.5798]
[1761339568648,7.2178104,3940.7,3940.4,0.1292]
[1761339570493,0.099,3940.6,3940.4,0.1292]
[1761339570877,9.75543244,3940.7,3940.4,0.1292]
[1761339571091,9.85443244,3940.7,3940.4,0.1292]
[1761339571389,9.75543244,3940.7,3940.4,0.1292]
[1761339571583,0.099,3940.6,3940.4,0.1292]
[1761339571957,2.53774901,3940.5,3940.4,0.002]
[1761339572162,2.63670931,3940.6,3940.4,0.002]
[1761339572364,0.099,3940.5,3940.4,0.002]
[1761339572588,2.63674901,3940.5,3940.4,0.002]
[1761339573393,4.29077319,3940.5,3940.4,0.002]
[1761339579801,4.19177319,3940.5,3940.4,0.002]
[1761339579966,2.53774901,3940.5,3940.4,0.002]
[1761339580166,0.1272,3940.6,3940.4,0.002]
[1761339580411,0.001,3940.8,3940.4,0.4466]
[1761339580701,0.001,3940.8,3940.6,0.1272]
[1761339581007,0.001,3940.8,3940.7,0.1272]
[1761339581382,0.001,3940.8,3940.7,1.2553193]
[1761339581586,0.001,3940.8,3940.7,1.47194863]
[1761339582007,0.001,3940.8,3940.7,0.78842933]
[1761339584517,0.001,3940.8,3940.7,1.69740333]
[1761339584919,0.001,3940.8,3940.7,0.78842933]
[1761339585122,0.001,3940.8,3940.7,2.15189034]
[1761339585288,0.001,3940.8,3940.7,0.78842933]